[Event "Late-Titled-Tuesday-Blitz-September-05-2023"]
[Site "Chess.com"]
[Date "2023.09.05"]
[Round "10"]
[White "WilsonPalencia21"]
[Black "vanyakuba"]
[Result "1-0"]
[WhiteElo "2553"]
[BlackElo "2408"]
[TimeControl "180+1"]
[EndTime "15:55:34 PDT"]
[Termination "WilsonPalencia21 won by resignation"]

1. d4 {[%clk 0:03:00.9]} 1... d5 {[%clk 0:02:59.5]} 2. c4 {[%clk 0:03:00.8]}
2... e6 {[%clk 0:02:59.4]} 3. Nf3 {[%clk 0:03:01]} 3... c6 {[%clk 0:02:59.2]} 4.
Nc3 {[%clk 0:02:59.4]} 4... dxc4 {[%clk 0:02:58.1]} 5. a4 {[%clk 0:02:58.6]}
5... Bb4 {[%clk 0:02:57.4]} 6. e3 {[%clk 0:02:53]} 6... b5 {[%clk 0:02:57.1]} 7.
Bd2 {[%clk 0:02:52.9]} 7... a5 {[%clk 0:02:56.3]} 8. axb5 {[%clk 0:02:48.3]}
8... Bxc3 {[%clk 0:02:56]} 9. Bxc3 {[%clk 0:02:48.7]} 9... cxb5 {[%clk
0:02:56.4]} 10. b3 {[%clk 0:02:49]} 10... Bb7 {[%clk 0:02:56.8]} 11. bxc4 {[%clk
0:02:49.3]} 11... b4 {[%clk 0:02:57.5]} 12. Bb2 {[%clk 0:02:49.6]} 12... Nf6
{[%clk 0:02:56.9]} 13. Bd3 {[%clk 0:02:48.6]} 13... Nbd7 {[%clk 0:02:57]} 14.
O-O {[%clk 0:02:48]} 14... O-O {[%clk 0:02:56.9]} 15. Nd2 {[%clk 0:02:47.9]}
15... Qc7 {[%clk 0:02:45.1]} 16. Bc2 {[%clk 0:02:47.4]} 16... e5 {[%clk
0:02:30.6]} 17. Rc1 {[%clk 0:02:14.4]} 17... exd4 {[%clk 0:02:05.4]} 18. exd4
{[%clk 0:02:13.3]} 18... Nb6 {[%clk 0:02:04]} 19. d5 {[%clk 0:02:03.3]} 19...
Nbd7 {[%clk 0:01:43.8]} 20. Ne4 {[%clk 0:01:50.1]} 20... Nxe4 {[%clk 0:01:03.6]}
21. Bxe4 {[%clk 0:01:47.2]} 21... Nc5 {[%clk 0:01:03.7]} 22. Qd4 {[%clk
0:01:34.8]} 22... f5 {[%clk 0:00:40.2]} 23. d6 {[%clk 0:01:30.3]} 23... Qf7
{[%clk 0:00:30.6]} 24. Bxb7 {[%clk 0:01:18.9]} 24... Nxb7 {[%clk 0:00:23.5]} 25.
c5 {[%clk 0:01:19.1]} 25... Nd8 {[%clk 0:00:19.2]} 26. c6 {[%clk 0:01:16.9]}
26... Ne6 {[%clk 0:00:19.2]} 27. Qd5 {[%clk 0:01:13.7]} 27... Nf4 {[%clk
0:00:17.2]} 28. Qf3 {[%clk 0:01:09.7]} 28... Ne6 {[%clk 0:00:08.5]} 29. c7
{[%clk 0:01:07.9]} 29... a4 {[%clk 0:00:08.4]} 30. Qd5 {[%clk 0:00:49.6]} 30...
a3 {[%clk 0:00:08.1]} 31. Be5 {[%clk 0:00:44.8]} 31... Ng5 {[%clk 0:00:03.3]}
32. Qxa8 {[%clk 0:00:32.4]} 32... Rxa8 {[%clk 0:00:02.9]} 33. c8=Q+ {[%clk
0:00:31.6]} 33... Qf8 {[%clk 0:00:03]} 34. Qxf8+ {[%clk 0:00:18.2]} 34... Rxf8
{[%clk 0:00:03.8]} 35. Bd4 {[%clk 0:00:09.8]} 35... Ne6 {[%clk 0:00:03.7]} 36.
Be5 {[%clk 0:00:08.2]} 36... Rd8 {[%clk 0:00:02.9]} 37. Ra1 {[%clk 0:00:05.6]}
37... Rb8 {[%clk 0:00:01.2]} 38. Rfb1 {[%clk 0:00:05.3]} 38... Rb5 {[%clk
0:00:01.2]} 39. f4 {[%clk 0:00:05.1]} 39... Kf7 {[%clk 0:00:02.1]} 40. Rxa3
{[%clk 0:00:03.9]} 40... g5 {[%clk 0:00:03]} 41. Ra7+ {[%clk 0:00:02.5]} 41...
Kg6 {[%clk 0:00:03.5]} 42. g3 {[%clk 0:00:01.5]} 42... gxf4 {[%clk 0:00:04.4]}
43. gxf4 {[%clk 0:00:02.2]} 43... Nc5 {[%clk 0:00:05]} 44. d7 {[%clk 0:00:02.1]}
44... Nd3 {[%clk 0:00:05.9]} 45. d8=Q {[%clk 0:00:01.7]} 45... Nxf4 {[%clk
0:00:06.8]} 46. Qg8+ {[%clk 0:00:02.1]} 46... Kh5 {[%clk 0:00:07.2]} 47. Bxf4
{[%clk 0:00:02.9]} 47... Re5 {[%clk 0:00:06.5]} 48. Qxh7+ {[%clk 0:00:03.8]}
48... Kg4 {[%clk 0:00:06.7]} 49. Qg6+ {[%clk 0:00:04.2]} 49... Kf3 {[%clk
0:00:07.6]} 50. Qg3+ {[%clk 0:00:04.6]} 50... Ke4 {[%clk 0:00:08.5]} 51. Qe3+
{[%clk 0:00:05.1]} 1-0

[Event "Late-Titled-Tuesday-Blitz-September-05-2023"]
[Site "Chess.com"]
[Date "2023.09.05"]
[Round "10"]
[White "FeketeBarika"]
[Black "cande_francisco"]
[Result "0-1"]
[WhiteElo "2396"]
[BlackElo "2533"]
[TimeControl "180+1"]
[EndTime "15:55:35 PDT"]
[Termination "cande_francisco won on time"]

1. Nf3 {[%clk 0:02:54.8]} 1... c5 {[%clk 0:03:00.2]} 2. c4 {[%clk 0:02:53]} 2...
Nc6 {[%clk 0:03:00.2]} 3. Nc3 {[%clk 0:02:53.2]} 3... Nf6 {[%clk 0:02:59.9]} 4.
g3 {[%clk 0:02:48.4]} 4... g6 {[%clk 0:02:59.8]} 5. Bg2 {[%clk 0:02:48.8]} 5...
Bg7 {[%clk 0:03:00.4]} 6. O-O {[%clk 0:02:43]} 6... e5 {[%clk 0:03:00.3]} 7. d3
{[%clk 0:02:42.4]} 7... O-O {[%clk 0:02:59.6]} 8. Bg5 {[%clk 0:02:42.6]} 8... h6
{[%clk 0:02:59.9]} 9. Bxf6 {[%clk 0:02:42.1]} 9... Qxf6 {[%clk 0:02:59.4]} 10.
Nd5 {[%clk 0:02:40.7]} 10... Qd8 {[%clk 0:02:59.4]} 11. Ne1 {[%clk 0:02:40.8]}
11... d6 {[%clk 0:02:57.3]} 12. Nc2 {[%clk 0:02:40.2]} 12... f5 {[%clk
0:02:57.5]} 13. e3 {[%clk 0:02:36.5]} 13... g5 {[%clk 0:02:55.8]} 14. f4 {[%clk
0:02:26.5]} 14... Be6 {[%clk 0:02:52.4]} 15. Rb1 {[%clk 0:02:24.8]} 15... a5
{[%clk 0:02:52.1]} 16. a3 {[%clk 0:02:23.4]} 16... Ne7 {[%clk 0:02:36.5]} 17. b4
{[%clk 0:02:14.9]} 17... cxb4 {[%clk 0:02:28.7]} 18. axb4 {[%clk 0:02:12.1]}
18... Nxd5 {[%clk 0:02:26.1]} 19. cxd5 {[%clk 0:02:11.2]} 19... Bc8 {[%clk
0:02:21.8]} 20. bxa5 {[%clk 0:02:11.2]} 20... Rxa5 {[%clk 0:02:19.2]} 21. fxe5
{[%clk 0:02:01.6]} 21... Bxe5 {[%clk 0:02:18.3]} 22. d4 {[%clk 0:02:00.6]} 22...
Bg7 {[%clk 0:02:18.1]} 23. Qd3 {[%clk 0:01:44.4]} 23... Qe7 {[%clk 0:02:08.8]}
24. Kh1 {[%clk 0:01:43.1]} 24... Ra2 {[%clk 0:02:05.5]} 25. Qb3 {[%clk
0:01:40.6]} 25... Ra8 {[%clk 0:01:53.6]} 26. Qd3 {[%clk 0:01:25.5]} 26... h5
{[%clk 0:01:52.2]} 27. Rbe1 {[%clk 0:01:20.4]} 27... h4 {[%clk 0:01:42.7]} 28.
gxh4 {[%clk 0:01:19.2]} 28... g4 {[%clk 0:01:42.7]} 29. h5 {[%clk 0:01:11]}
29... Qh4 {[%clk 0:01:38.4]} 30. Rf4 {[%clk 0:00:55.3]} 30... Bh6 {[%clk
0:01:23.8]} 31. Rff1 {[%clk 0:00:53.7]} 31... Qxh5 {[%clk 0:01:13]} 32. Kg1
{[%clk 0:00:54.2]} 32... Bd7 {[%clk 0:01:04.7]} 33. Na3 {[%clk 0:00:48.5]} 33...
Rae8 {[%clk 0:00:58.9]} 34. Re2 {[%clk 0:00:40.9]} 34... Bg7 {[%clk 0:00:34]}
35. Nb5 {[%clk 0:00:39]} 35... Qg6 {[%clk 0:00:31.6]} 36. Nc7 {[%clk 0:00:35.2]}
36... Rc8 {[%clk 0:00:27.8]} 37. Rc2 {[%clk 0:00:33.3]} 37... Qf7 {[%clk
0:00:17]} 38. Qb3 {[%clk 0:00:31.8]} 38... b5 {[%clk 0:00:14.3]} 39. Ne6 {[%clk
0:00:32]} 39... Rxc2 {[%clk 0:00:13.6]} 40. Nxf8 {[%clk 0:00:23.7]} 40... Rxg2+
{[%clk 0:00:13.2]} 41. Kxg2 {[%clk 0:00:23.4]} 41... Qxf8 {[%clk 0:00:13.6]} 42.
Ra1 {[%clk 0:00:13.3]} 42... Qe8 {[%clk 0:00:13.4]} 43. Kf2 {[%clk 0:00:12]}
43... Qe4 {[%clk 0:00:12.9]} 44. Qd1 {[%clk 0:00:11.1]} 44... f4 {[%clk
0:00:09.1]} 45. Qe2 {[%clk 0:00:10.4]} 45... fxe3+ {[%clk 0:00:08.5]} 46. Kg1
{[%clk 0:00:06.2]} 46... Bxd4 {[%clk 0:00:07.2]} 47. Ra8+ {[%clk 0:00:06.1]}
47... Kg7 {[%clk 0:00:07]} 48. Rd8 {[%clk 0:00:05]} 48... Qb1+ {[%clk
0:00:07.1]} 49. Kg2 {[%clk 0:00:04.7]} 49... Qf5 {[%clk 0:00:07.2]} 0-1

[Event "Late-Titled-Tuesday-Blitz-September-05-2023"]
[Site "Chess.com"]
[Date "2023.09.05"]
[Round "10"]
[White "Nick12772"]
[Black "MariaFominykh"]
[Result "1-0"]
[WhiteElo "2339"]
[BlackElo "2257"]
[TimeControl "180+1"]
[EndTime "15:55:42 PDT"]
[Termination "Nick12772 won on time"]

1. Nf3 {[%clk 0:03:00.9]} 1... Nf6 {[%clk 0:02:59.3]} 2. g3 {[%clk 0:03:01.1]}
2... g6 {[%clk 0:02:59.7]} 3. Bg2 {[%clk 0:03:02]} 3... Bg7 {[%clk 0:03:00.3]}
4. O-O {[%clk 0:03:02.9]} 4... O-O {[%clk 0:03:00.1]} 5. c4 {[%clk 0:03:03.8]}
5... d6 {[%clk 0:03:00.3]} 6. Nc3 {[%clk 0:03:04.3]} 6... Nc6 {[%clk 0:02:59]}
7. d3 {[%clk 0:03:04.5]} 7... a6 {[%clk 0:02:56.8]} 8. Rb1 {[%clk 0:03:04.2]}
8... Rb8 {[%clk 0:02:54.8]} 9. b4 {[%clk 0:03:03.7]} 9... b5 {[%clk 0:02:54.3]}
10. cxb5 {[%clk 0:02:59.1]} 10... axb5 {[%clk 0:02:55.2]} 11. a3 {[%clk
0:02:58.1]} 11... Nd7 {[%clk 0:02:53.5]} 12. Bb2 {[%clk 0:02:57.7]} 12... Nd4
{[%clk 0:02:34]} 13. Nxd4 {[%clk 0:02:56.3]} 13... Bxd4 {[%clk 0:02:33.4]} 14.
Qd2 {[%clk 0:02:45.6]} 14... c5 {[%clk 0:02:24.5]} 15. Nd5 {[%clk 0:02:40.4]}
15... Bxb2 {[%clk 0:02:19.2]} 16. Qxb2 {[%clk 0:02:41.2]} 16... Nb6 {[%clk
0:02:00.5]} 17. Nxb6 {[%clk 0:02:22.8]} 17... Qxb6 {[%clk 0:01:54.6]} 18. Rfc1
{[%clk 0:02:22.9]} 18... Be6 {[%clk 0:01:39.4]} 19. Rc2 {[%clk 0:02:08.2]} 19...
c4 {[%clk 0:01:39]} 20. dxc4 {[%clk 0:02:03.4]} 20... Bxc4 {[%clk 0:01:34.7]}
21. a4 {[%clk 0:01:58.6]} 21... h5 {[%clk 0:01:20.5]} 22. a5 {[%clk 0:01:54.9]}
22... Qa7 {[%clk 0:01:20.4]} 23. h4 {[%clk 0:01:52.9]} 23... d5 {[%clk
0:00:47.3]} 24. Rbc1 {[%clk 0:01:44.6]} 24... e6 {[%clk 0:00:34]} 25. e3 {[%clk
0:01:44]} 25... Qe7 {[%clk 0:00:31.9]} 26. Bf1 {[%clk 0:01:21.8]} 26... Rfd8
{[%clk 0:00:28.8]} 27. Ra1 {[%clk 0:01:19.1]} 27... Rd7 {[%clk 0:00:25.4]} 28.
Rc3 {[%clk 0:01:08.1]} 28... e5 {[%clk 0:00:22.8]} 29. Rcc1 {[%clk 0:01:01.3]}
29... Ra7 {[%clk 0:00:20]} 30. Rd1 {[%clk 0:00:57.1]} 30... Ra6 {[%clk
0:00:19.3]} 31. Rac1 {[%clk 0:00:55.4]} 31... Qe6 {[%clk 0:00:17.1]} 32. Kg2
{[%clk 0:00:54.4]} 32... Qc6 {[%clk 0:00:14.5]} 33. Kg1 {[%clk 0:00:53.4]} 33...
Qe6 {[%clk 0:00:14.1]} 34. Bg2 {[%clk 0:00:53]} 34... Ra7 {[%clk 0:00:10.7]} 35.
Rd2 {[%clk 0:00:48.2]} 35... Kh7 {[%clk 0:00:08.7]} 36. Rcd1 {[%clk 0:00:48.4]}
36... Rd7 {[%clk 0:00:07.4]} 37. Ra1 {[%clk 0:00:45.1]} 37... Rbd8 {[%clk
0:00:06.5]} 38. a6 {[%clk 0:00:36.4]} 38... Ra7 {[%clk 0:00:06.1]} 39. Ra3
{[%clk 0:00:35.1]} 39... Rxa6 {[%clk 0:00:05.4]} 40. Rd1 {[%clk 0:00:28.6]}
40... Rxa3 {[%clk 0:00:04.6]} 41. Qxa3 {[%clk 0:00:29.5]} 41... Rd6 {[%clk
0:00:04.7]} 42. Qa7 {[%clk 0:00:27.4]} 42... Ra6 {[%clk 0:00:04.3]} 43. Qc5
{[%clk 0:00:24.6]} 43... Ra2 {[%clk 0:00:04]} 44. Bxd5 {[%clk 0:00:19.5]} 44...
Qg4 {[%clk 0:00:04.2]} 45. Rc1 {[%clk 0:00:06.4]} 45... Qe2 {[%clk 0:00:02.7]}
46. e4 {[%clk 0:00:05.7]} 46... Bxd5 {[%clk 0:00:02]} 47. exd5 {[%clk
0:00:04.6]} 47... e4 {[%clk 0:00:02.3]} 48. Rf1 {[%clk 0:00:03.9]} 48... Qf3
{[%clk 0:00:02.4]} 49. Qe3 {[%clk 0:00:04.3]} 49... Rb2 {[%clk 0:00:01.7]} 50.
Qxf3 {[%clk 0:00:04.3]} 50... exf3 {[%clk 0:00:02.6]} 51. Rd1 {[%clk 0:00:05]}
51... Rxb4 {[%clk 0:00:02]} 52. d6 {[%clk 0:00:05.9]} 1-0

[Event "Late-Titled-Tuesday-Blitz-September-05-2023"]
[Site "Chess.com"]
[Date "2023.09.05"]
[Round "10"]
[White "Matibar"]
[Black "arminmusovic"]
[Result "1/2-1/2"]
[WhiteElo "2861"]
[BlackElo "2548"]
[TimeControl "180+1"]
[EndTime "15:55:43 PDT"]
[Termination "Game drawn - insufficient material"]

1. b3 {[%clk 0:02:58.3]} 1... Nf6 {[%clk 0:02:59.4]} 2. Bb2 {[%clk 0:02:58]}
2... d5 {[%clk 0:02:58.8]} 3. g3 {[%clk 0:02:56.9]} 3... Bg4 {[%clk 0:02:58]} 4.
Bg2 {[%clk 0:02:56.6]} 4... c6 {[%clk 0:02:56.5]} 5. d3 {[%clk 0:02:56.9]} 5...
e6 {[%clk 0:02:49.1]} 6. Nd2 {[%clk 0:02:57.4]} 6... Bb4 {[%clk 0:02:45]} 7. a3
{[%clk 0:02:55.9]} 7... Ba5 {[%clk 0:02:44.6]} 8. Nf3 {[%clk 0:02:52.1]} 8...
O-O {[%clk 0:02:44.3]} 9. h3 {[%clk 0:02:51.5]} 9... Bh5 {[%clk 0:02:44.5]} 10.
g4 {[%clk 0:02:48.2]} 10... Bg6 {[%clk 0:02:44.8]} 11. Nh4 {[%clk 0:02:48.6]}
11... Bxd2+ {[%clk 0:02:28.5]} 12. Qxd2 {[%clk 0:02:47.4]} 12... Ne4 {[%clk
0:02:28.4]} 13. dxe4 {[%clk 0:02:47.3]} 13... Qxh4 {[%clk 0:02:28.4]} 14. Qe3
{[%clk 0:01:51.1]} 14... Nd7 {[%clk 0:02:05.4]} 15. O-O-O {[%clk 0:00:38.4]}
15... Nf6 {[%clk 0:01:23.9]} 16. e5 {[%clk 0:00:34]} 16... Ne4 {[%clk
0:01:14.6]} 17. Rhf1 {[%clk 0:00:26.8]} 17... b6 {[%clk 0:01:00]} 18. f3 {[%clk
0:00:27]} 18... Nc5 {[%clk 0:00:59.8]} 19. f4 {[%clk 0:00:27.3]} 19... Be4
{[%clk 0:00:57.6]} 20. Bxe4 {[%clk 0:00:22.3]} 20... Nxe4 {[%clk 0:00:55.7]} 21.
f5 {[%clk 0:00:23.2]} 21... Qg5 {[%clk 0:00:39.2]} 22. Rf4 {[%clk 0:00:21.8]}
22... f6 {[%clk 0:00:31.8]} 23. fxe6 {[%clk 0:00:19.2]} 23... fxe5 {[%clk
0:00:28.5]} 24. Rxf8+ {[%clk 0:00:19.4]} 24... Rxf8 {[%clk 0:00:28.4]} 25. Qxg5
{[%clk 0:00:20.2]} 25... Nxg5 {[%clk 0:00:28.4]} 26. Bxe5 {[%clk 0:00:21.1]}
26... Nxh3 {[%clk 0:00:21.3]} 27. c4 {[%clk 0:00:21.4]} 27... Ng5 {[%clk
0:00:18.5]} 28. cxd5 {[%clk 0:00:19.6]} 28... cxd5 {[%clk 0:00:19.4]} 29. Rxd5
{[%clk 0:00:18.7]} 29... Re8 {[%clk 0:00:17.8]} 30. Rd7 {[%clk 0:00:17.9]} 30...
Nxe6 {[%clk 0:00:17.4]} 31. Bc3 {[%clk 0:00:17.2]} 31... a5 {[%clk 0:00:15.5]}
32. Kd2 {[%clk 0:00:15.2]} 32... Rd8 {[%clk 0:00:14.7]} 33. Rxd8+ {[%clk
0:00:15.2]} 33... Nxd8 {[%clk 0:00:15.6]} 34. Kd3 {[%clk 0:00:15.8]} 34... g6
{[%clk 0:00:15.4]} 35. Ke4 {[%clk 0:00:15.8]} 35... Kf7 {[%clk 0:00:15.8]} 36.
Kd5 {[%clk 0:00:16.1]} 36... h5 {[%clk 0:00:15.9]} 37. gxh5 {[%clk 0:00:16.4]}
37... gxh5 {[%clk 0:00:16.8]} 38. Be5 {[%clk 0:00:16.1]} 38... h4 {[%clk
0:00:16.8]} 39. Bc7 {[%clk 0:00:15.2]} 39... h3 {[%clk 0:00:16.1]} 40. Ke4
{[%clk 0:00:14.3]} 40... Ne6 {[%clk 0:00:16]} 41. Bh2 {[%clk 0:00:14.3]} 41...
Nc5+ {[%clk 0:00:16]} 42. Kf3 {[%clk 0:00:14.2]} 42... Nxb3 {[%clk 0:00:16.9]}
43. Kg4 {[%clk 0:00:14.6]} 43... Ke6 {[%clk 0:00:16.7]} 44. Kxh3 {[%clk
0:00:14.8]} 44... Kf5 {[%clk 0:00:17.4]} 45. Kg2 {[%clk 0:00:15.1]} 45... Ke4
{[%clk 0:00:17.7]} 46. Bc7 {[%clk 0:00:14.7]} 46... b5 {[%clk 0:00:17.2]} 47.
Kf2 {[%clk 0:00:15.2]} 47... a4 {[%clk 0:00:17.3]} 48. Bd6 {[%clk 0:00:14.9]}
48... Na5 {[%clk 0:00:13.9]} 49. Bb4 {[%clk 0:00:14.5]} 49... Nc4 {[%clk
0:00:14.8]} 50. Ke1 {[%clk 0:00:14.5]} 50... Nb6 {[%clk 0:00:13.5]} 51. Kd2
{[%clk 0:00:14.3]} 51... Nd5 {[%clk 0:00:14.4]} 52. Bd6 {[%clk 0:00:14.1]} 52...
Kd4 {[%clk 0:00:13.9]} 53. Kc2 {[%clk 0:00:14.4]} 53... Ne3+ {[%clk 0:00:12.7]}
54. Kb1 {[%clk 0:00:14.7]} 54... Nc4 {[%clk 0:00:09.4]} 55. Bb4 {[%clk
0:00:14.2]} 55... Ke3 {[%clk 0:00:09.9]} 56. Kc2 {[%clk 0:00:14.8]} 56... Kxe2
{[%clk 0:00:10.5]} 57. Kc3 {[%clk 0:00:15.5]} 57... Ke3 {[%clk 0:00:11.2]} 58.
Bc5+ {[%clk 0:00:15.9]} 58... Ke4 {[%clk 0:00:11.4]} 59. Kb4 {[%clk 0:00:16.8]}
59... Kd5 {[%clk 0:00:11.5]} 60. Kxb5 {[%clk 0:00:17.2]} 60... Nxa3+ {[%clk
0:00:05.4]} 61. Bxa3 {[%clk 0:00:18.1]} 61... Ke4 {[%clk 0:00:05.1]} 62. Kxa4
{[%clk 0:00:18.1]} 1/2-1/2

[Event "Late-Titled-Tuesday-Blitz-September-05-2023"]
[Site "Chess.com"]
[Date "2023.09.05"]
[Round "10"]
[White "HansOnTwitch"]
[Black "Hikaru"]
[Result "1/2-1/2"]
[WhiteElo "3024"]
[BlackElo "3237"]
[TimeControl "180+1"]
[EndTime "15:55:45 PDT"]
[Termination "Game drawn by repetition"]

1. e4 {[%clk 0:03:00.9]} 1... e5 {[%clk 0:03:00.2]} 2. Nf3 {[%clk 0:02:59.2]}
2... Nc6 {[%clk 0:03:00.1]} 3. Bb5 {[%clk 0:02:59.3]} 3... Nf6 {[%clk
0:03:00.7]} 4. O-O {[%clk 0:02:58.4]} 4... Nxe4 {[%clk 0:03:01.1]} 5. d4 {[%clk
0:02:58.4]} 5... Nd6 {[%clk 0:03:01.6]} 6. Bxc6 {[%clk 0:02:58.4]} 6... dxc6
{[%clk 0:03:02.5]} 7. dxe5 {[%clk 0:02:58.7]} 7... Nf5 {[%clk 0:03:03.3]} 8.
Qxd8+ {[%clk 0:02:58.3]} 8... Kxd8 {[%clk 0:03:04.2]} 9. h3 {[%clk 0:02:58.5]}
9... Bd7 {[%clk 0:03:02.1]} 10. Rd1 {[%clk 0:02:56.1]} 10... Kc8 {[%clk
0:03:00.9]} 11. a4 {[%clk 0:02:55]} 11... a5 {[%clk 0:02:52.7]} 12. Nc3 {[%clk
0:02:48.1]} 12... h6 {[%clk 0:02:49.8]} 13. Ne2 {[%clk 0:02:40.3]} 13... Ne7
{[%clk 0:02:39.4]} 14. b3 {[%clk 0:02:32.3]} 14... Ng6 {[%clk 0:02:34]} 15. Bb2
{[%clk 0:02:32.1]} 15... c5 {[%clk 0:02:30.1]} 16. Nc3 {[%clk 0:02:25.5]} 16...
Nf4 {[%clk 0:02:25.5]} 17. Bc1 {[%clk 0:02:21.6]} 17... Ne6 {[%clk 0:02:22]} 18.
Nd5 {[%clk 0:02:21.4]} 18... Bc6 {[%clk 0:01:58.2]} 19. c4 {[%clk 0:02:21.2]}
19... g5 {[%clk 0:01:57.8]} 20. Bb2 {[%clk 0:02:19.8]} 20... b6 {[%clk
0:01:57.6]} 21. Nh2 {[%clk 0:02:15.3]} 21... h5 {[%clk 0:01:52.9]} 22. Nf1
{[%clk 0:02:11.6]} 22... Kb7 {[%clk 0:01:29.3]} 23. Nfe3 {[%clk 0:02:11.2]}
23... Rh6 {[%clk 0:01:27.8]} 24. Nf5 {[%clk 0:02:09.5]} 24... Rh8 {[%clk
0:01:26.5]} 25. Rd2 {[%clk 0:02:02.3]} 25... Bh6 {[%clk 0:01:21.2]} 26. Nxh6
{[%clk 0:01:50.5]} 26... Rxh6 {[%clk 0:01:22.1]} 27. Rad1 {[%clk 0:01:48.9]}
27... Re8 {[%clk 0:01:19.5]} 28. Nf6 {[%clk 0:01:47.6]} 28... Reh8 {[%clk
0:01:18.2]} 29. Nd5 {[%clk 0:01:40.4]} 29... Re8 {[%clk 0:01:12.8]} 30. Kh2
{[%clk 0:01:35.8]} 30... Rg6 {[%clk 0:01:08.7]} 31. Nf6 {[%clk 0:01:35.5]} 31...
Rh8 {[%clk 0:01:08.7]} 32. g3 {[%clk 0:01:31.2]} 32... Bf3 {[%clk 0:01:04.8]}
33. Re1 {[%clk 0:01:29.8]} 33... Bc6 {[%clk 0:01:04.1]} 34. Rd3 {[%clk
0:01:22.6]} 34... Kc8 {[%clk 0:01:01.6]} 35. Nd5 {[%clk 0:01:15.7]} 35... Kb7
{[%clk 0:01:01.7]} 36. Ne7 {[%clk 0:01:14.5]} 36... Rg7 {[%clk 0:01:01.4]} 37.
Nxc6 {[%clk 0:01:10.8]} 37... Kxc6 {[%clk 0:01:02.3]} 38. Red1 {[%clk
0:01:09.4]} 38... g4 {[%clk 0:00:58.3]} 39. h4 {[%clk 0:01:09]} 39... Rgg8
{[%clk 0:00:58.5]} 40. Kg2 {[%clk 0:01:01.9]} 40... Re8 {[%clk 0:00:48.4]} 41.
f3 {[%clk 0:00:58]} 41... gxf3+ {[%clk 0:00:48.6]} 42. Rxf3 {[%clk 0:00:57.6]}
42... Rh7 {[%clk 0:00:49.4]} 43. Rf5 {[%clk 0:00:50.8]} 43... Rg8 {[%clk
0:00:48]} 44. Rd3 {[%clk 0:00:49.3]} 44... Rgg7 {[%clk 0:00:46.9]} 45. Kf2
{[%clk 0:00:49.3]} 45... Kb7 {[%clk 0:00:46]} 46. Rd7 {[%clk 0:00:40.9]} 46...
Kc8 {[%clk 0:00:44.7]} 47. Rd3 {[%clk 0:00:40.4]} 47... Rg8 {[%clk 0:00:44.1]}
48. Bc3 {[%clk 0:00:38.9]} 48... Rgg7 {[%clk 0:00:33.9]} 49. Rf6 {[%clk
0:00:37.5]} 49... Rg8 {[%clk 0:00:31.6]} 50. Rdf3 {[%clk 0:00:34.6]} 50... Rgg7
{[%clk 0:00:31.9]} 51. Ke3 {[%clk 0:00:34.8]} 51... Kd7 {[%clk 0:00:31.4]} 52.
Kf2 {[%clk 0:00:31.5]} 52... Ke7 {[%clk 0:00:31.1]} 53. Rd3 {[%clk 0:00:22.1]}
53... Rg8 {[%clk 0:00:30.1]} 54. Rf5 {[%clk 0:00:21.8]} 54... Rg4 {[%clk
0:00:29.5]} 55. Rf6 {[%clk 0:00:17.3]} 55... Rg6 {[%clk 0:00:23.9]} 56. Rf5
{[%clk 0:00:15.4]} 56... Rg8 {[%clk 0:00:23.5]} 57. Rff3 {[%clk 0:00:14.7]}
57... Rg4 {[%clk 0:00:18]} 58. Rf5 {[%clk 0:00:14]} 58... Rg6 {[%clk 0:00:15.3]}
59. Rff3 {[%clk 0:00:13.3]} 59... Rgg7 {[%clk 0:00:15]} 60. Rf5 {[%clk
0:00:13.3]} 60... Rg8 {[%clk 0:00:15.6]} 61. Rff3 {[%clk 0:00:13.3]} 61... Rg4
{[%clk 0:00:15.6]} 62. Rf5 {[%clk 0:00:13.5]} 62... Rh8 {[%clk 0:00:15.6]} 63.
Rdf3 {[%clk 0:00:12.7]} 63... Rg7 {[%clk 0:00:15.6]} 64. Rd3 {[%clk 0:00:12.7]}
64... Rg6 {[%clk 0:00:12.2]} 65. Rdf3 {[%clk 0:00:12]} 65... Rh7 {[%clk
0:00:12.5]} 66. Rd3 {[%clk 0:00:12]} 66... Rg8 {[%clk 0:00:11]} 1/2-1/2

[Event "Late-Titled-Tuesday-Blitz-September-05-2023"]
[Site "Chess.com"]
[Date "2023.09.05"]
[Round "10"]
[White "santosalberto1987"]
[Black "newyorkmouse"]
[Result "1-0"]
[WhiteElo "2554"]
[BlackElo "2464"]
[TimeControl "180+1"]
[EndTime "15:55:46 PDT"]
[Termination "santosalberto1987 won on time"]

1. e4 {[%clk 0:02:40]} 1... g6 {[%clk 0:02:58.2]} 2. d4 {[%clk 0:02:40.1]} 2...
Bg7 {[%clk 0:02:58.7]} 3. Nc3 {[%clk 0:02:40.4]} 3... d6 {[%clk 0:02:58.3]} 4.
Nf3 {[%clk 0:02:40]} 4... Bg4 {[%clk 0:02:53.9]} 5. Be3 {[%clk 0:02:40.3]} 5...
Nc6 {[%clk 0:02:52.5]} 6. Be2 {[%clk 0:02:38.9]} 6... e5 {[%clk 0:02:48.6]} 7.
dxe5 {[%clk 0:02:28.1]} 7... dxe5 {[%clk 0:02:48.3]} 8. Qxd8+ {[%clk 0:02:27.5]}
8... Rxd8 {[%clk 0:02:48.1]} 9. Nd5 {[%clk 0:02:22.5]} 9... Bxf3 {[%clk
0:02:33]} 10. Bxf3 {[%clk 0:02:22.2]} 10... Rd7 {[%clk 0:02:22.1]} 11. O-O-O
{[%clk 0:02:10.7]} 11... Nge7 {[%clk 0:02:15.4]} 12. Nxe7 {[%clk 0:01:55.3]}
12... Nxe7 {[%clk 0:02:09.7]} 13. Bg4 {[%clk 0:01:43.8]} 13... f5 {[%clk
0:01:51.3]} 14. exf5 {[%clk 0:01:43.5]} 14... gxf5 {[%clk 0:01:52.2]} 15. Bh5+
{[%clk 0:01:43.3]} 15... Kd8 {[%clk 0:01:52.5]} 16. Rxd7+ {[%clk 0:01:40.4]}
16... Kxd7 {[%clk 0:01:53.4]} 17. Rd1+ {[%clk 0:01:40.6]} 17... Ke6 {[%clk
0:01:52.2]} 18. Be2 {[%clk 0:01:36.6]} 18... f4 {[%clk 0:01:42.9]} 19. Bc4+
{[%clk 0:01:33.1]} 19... Kf5 {[%clk 0:01:37]} 20. Bc5 {[%clk 0:01:21.7]} 20...
Nc6 {[%clk 0:01:30.6]} 21. Rd7 {[%clk 0:01:20.9]} 21... Bh6 {[%clk 0:01:27.4]}
22. f3 {[%clk 0:01:14.8]} 22... e4 {[%clk 0:01:21]} 23. fxe4+ {[%clk 0:00:43.2]}
23... Kxe4 {[%clk 0:01:20.4]} 24. Bd5+ {[%clk 0:00:43.6]} 24... Ke5 {[%clk
0:01:17.4]} 25. Bf3 {[%clk 0:00:43.7]} 25... Rc8 {[%clk 0:00:46.5]} 26. Rxh7
{[%clk 0:00:40.8]} 26... Bg5 {[%clk 0:00:46.8]} 27. h4 {[%clk 0:00:30.2]} 27...
Bd8 {[%clk 0:00:35.5]} 28. Bxc6 {[%clk 0:00:17.7]} 28... bxc6 {[%clk 0:00:35.4]}
29. Rh8 {[%clk 0:00:18]} 29... f3 {[%clk 0:00:31.2]} 30. Rh5+ {[%clk 0:00:14.2]}
30... Kf4 {[%clk 0:00:29.3]} 31. gxf3 {[%clk 0:00:14.4]} 31... Kxf3 {[%clk
0:00:28.9]} 32. Kd2 {[%clk 0:00:12.9]} 32... Kg4 {[%clk 0:00:27.9]} 33. Rh7
{[%clk 0:00:12.6]} 33... Bxh4 {[%clk 0:00:27]} 34. Kc3 {[%clk 0:00:12.5]} 34...
Bf6+ {[%clk 0:00:25.1]} 35. Bd4 {[%clk 0:00:12.7]} 35... Bg5 {[%clk 0:00:21.1]}
36. Kc4 {[%clk 0:00:10.2]} 36... Kf5 {[%clk 0:00:19.2]} 37. Bxa7 {[%clk
0:00:10]} 37... Ke6 {[%clk 0:00:17.8]} 38. Bc5 {[%clk 0:00:09.6]} 38... Bc1
{[%clk 0:00:15]} 39. b4 {[%clk 0:00:09.3]} 39... Bf4 {[%clk 0:00:12.6]} 40. a4
{[%clk 0:00:09.3]} 40... Rg8 {[%clk 0:00:11.6]} 41. a5 {[%clk 0:00:07.1]} 41...
Rg4 {[%clk 0:00:11.7]} 42. Kb3 {[%clk 0:00:06.9]} 42... Rg3+ {[%clk 0:00:11.6]}
43. c3 {[%clk 0:00:07.2]} 43... Bc1 {[%clk 0:00:11.6]} 44. Bd4 {[%clk
0:00:06.4]} 44... Rg2 {[%clk 0:00:11.2]} 45. a6 {[%clk 0:00:05.2]} 45... Rb2+
{[%clk 0:00:10.6]} 46. Kc4 {[%clk 0:00:05.4]} 46... Ra2 {[%clk 0:00:11.1]} 47.
a7 {[%clk 0:00:05.6]} 47... c5 {[%clk 0:00:07]} 48. Bxc5 {[%clk 0:00:05.5]} 1-0